[Event "Titled Tuesday Blitz August 22 Early 2023"]
[White "Womacka, Mathias"]
[Black "Petrova, Irina"]
[WhiteFideId "4611390"]
[BlackFideId "14124122"]
[WhiteElo "2449"]
[BlackElo "2362"]
[Result "1-0"]
[Round "7"]
[TimeControl "180+1"]
[Date "2023.08.22"]
[WhiteClock "0:00:12"]
[BlackClock "0:00:01"]
[Board "146"]

1. e4 {[%clk 0:03:00]}  d6 {[%clk 0:03:00]} 2. d4 {[%clk 0:02:59]}  Nf6 {[%clk 0:03:01]} 3. Nc3 {[%clk 0:02:59]}  e5 {[%clk 0:03:02]} 4. Nf3 {[%clk 0:02:58]}  Nbd7 {[%clk 0:03:02]} 5. Bc4 {[%clk 0:02:58]}  Be7 {[%clk 0:03:01]} 6. O-O {[%clk 0:02:58]}  O-O {[%clk 0:03:01]} 7. Re1 {[%clk 0:02:59]}  c6 {[%clk 0:03:01]} 8. a4 {[%clk 0:02:57]}  h6 {[%clk 0:03:01]} 9. h3 {[%clk 0:02:55]}  Re8 {[%clk 0:03:02]} 10. Be3 {[%clk 0:02:54]}  Bf8 {[%clk 0:03:02]} 11. a5 {[%clk 0:02:45]}  exd4 {[%clk 0:03:01]} 12. Bxd4 {[%clk 0:02:45]}  Qc7 {[%clk 0:02:59]} 13. Nh4 {[%clk 0:02:33]}  Ne5 {[%clk 0:02:59]} 14. Bb3 {[%clk 0:02:33]}  Be6 {[%clk 0:02:59]} 15. Bxe6 {[%clk 0:02:20]}  Rxe6 {[%clk 0:03:00]} 16. Nf5 {[%clk 0:02:20]}  g6 {[%clk 0:02:48]} 17. Ng3 {[%clk 0:02:09]}  Rae8 {[%clk 0:02:40]} 18. Bxa7 {[%clk 0:02:06]}  c5 {[%clk 0:02:37]} 19. Bb6 {[%clk 0:01:59]}  Qc6 {[%clk 0:02:36]} 20. Nd5 {[%clk 0:01:53]}  Ned7 {[%clk 0:02:34]} 21. Nxf6+ {[%clk 0:01:33]}  Rxf6 {[%clk 0:02:34]} 22. Qd3 {[%clk 0:01:24]}  Nxb6 {[%clk 0:02:32]} 23. axb6 {[%clk 0:01:24]}  Qxb6 {[%clk 0:02:32]} 24. b3 {[%clk 0:01:25]}  Rfe6 {[%clk 0:02:31]} 25. Re2 {[%clk 0:01:16]}  Bg7 {[%clk 0:02:23]} 26. Rd1 {[%clk 0:01:15]}  Be5 {[%clk 0:02:20]} 27. Nf1 {[%clk 0:01:13]}  Bf4 {[%clk 0:02:16]} 28. Nd2 {[%clk 0:01:09]}  Bxd2 {[%clk 0:02:13]} 29. Rdxd2 {[%clk 0:01:06]}  Qc6 {[%clk 0:02:11]} 30. f3 {[%clk 0:01:06]}  b5 {[%clk 0:02:08]} 31. Qd5 {[%clk 0:01:02]}  Qb6 {[%clk 0:02:08]} 32. Kh2 {[%clk 0:01:01]}  Kg7 {[%clk 0:02:03]} 33. Rd3 {[%clk 0:00:52]}  Qa6 {[%clk 0:01:58]} 34. Red2 {[%clk 0:00:51]}  Qa1 {[%clk 0:01:54]} 35. Qb7 {[%clk 0:00:45]}  Qe5+ {[%clk 0:01:49]} 36. Kh1 {[%clk 0:00:43]}  b4 {[%clk 0:01:48]} 37. Qc6 {[%clk 0:00:37]}  Qa1+ {[%clk 0:01:46]} 38. Rd1 {[%clk 0:00:35]}  Qb2 {[%clk 0:01:46]} 39. Rxd6 {[%clk 0:00:33]}  Qxc2 {[%clk 0:01:45]} 40. Qd5 {[%clk 0:00:28]}  Rxd6 {[%clk 0:01:42]} 41. Qxd6 {[%clk 0:00:29]}  Re6 {[%clk 0:01:42]} 42. Qd3 {[%clk 0:00:24]}  Qb2 {[%clk 0:01:29]} 43. Qc4 {[%clk 0:00:20]}  Qf2 {[%clk 0:01:19]} 44. Rd5 {[%clk 0:00:19]}  Rf6 {[%clk 0:01:01]} 45. Qxc5 {[%clk 0:00:17]}  Qf1+ {[%clk 0:00:51]} 46. Kh2 {[%clk 0:00:17]}  Ra6 {[%clk 0:00:52]} 47. Qd4+ {[%clk 0:00:16]}  Kh7 {[%clk 0:00:50]} 48. Rd7 {[%clk 0:00:16]}  h5 {[%clk 0:00:31]} 49. Rxf7+ {[%clk 0:00:15]}  Kh6 {[%clk 0:00:32]} 50. Qg7+ {[%clk 0:00:13]}  Kg5 {[%clk 0:00:32]} 51. Qe5+ {[%clk 0:00:13]}  Kh6 {[%clk 0:00:31]} 52. Qf4+ {[%clk 0:00:13]}  g5 {[%clk 0:00:32]} 53. Qf5 {[%clk 0:00:13]}  Rg6 {[%clk 0:00:29]} 54. Rf6 {[%clk 0:00:13]}  Rxf6 {[%clk 0:00:28]} 55. Qxf6+ {[%clk 0:00:13]}  Kh7 {[%clk 0:00:29]} 56. Qxg5 {[%clk 0:00:14]}  Qd1 {[%clk 0:00:23]} 57. Qxh5+ {[%clk 0:00:14]}  Kg7 {[%clk 0:00:23]} 58. Qe5+ {[%clk 0:00:15]}  Kh7 {[%clk 0:00:22]} 59. Qe7+ {[%clk 0:00:14]}  Kh8 {[%clk 0:00:21]} 60. Qxb4 {[%clk 0:00:14]}  Kh7 {[%clk 0:00:19]} 61. Qb8 {[%clk 0:00:14]}  Qd7 {[%clk 0:00:11]} 62. b4 {[%clk 0:00:13]}  Qe7 {[%clk 0:00:07]} 63. b5 {[%clk 0:00:13]}  Qf7 {[%clk 0:00:06]} 64. b6 {[%clk 0:00:13]}  Kh6 {[%clk 0:00:05]} 65. Qd6+ {[%clk 0:00:12]}  Kh7 {[%clk 0:00:01]} 66. Qc7 {[%clk 0:00:12]} 1-0


[Site "https://www.chess.com"]

[Event "Titled Tuesday Blitz August 22 Early 2023"]
[White "Balla, Tamas-Kristof"]
[Black "ZeGood_ZeBad_ZeUgly"]
[WhiteFideId "1208497"]
[WhiteElo "2444"]
[BlackElo "2267"]
[Result "1-0"]
[Round "7"]
[TimeControl "180+1"]
[Date "2023.08.22"]
[WhiteClock "0:00:23"]
[BlackClock "0:00:40"]
[Board "148"]

1. e4 {[%clk 0:03:00]}  e5 {[%clk 0:02:59]} 2. Nf3 {[%clk 0:02:59]}  Nc6 {[%clk 0:02:59]} 3. Bc4 {[%clk 0:02:59]}  Bc5 {[%clk 0:02:59]} 4. b4 {[%clk 0:03:00]}  Bxb4 {[%clk 0:02:56]} 5. c3 {[%clk 0:03:00]}  Bc5 {[%clk 0:02:57]} 6. d4 {[%clk 0:03:01]}  exd4 {[%clk 0:02:55]} 7. cxd4 {[%clk 0:03:02]}  Bb4+ {[%clk 0:02:55]} 8. Nbd2 {[%clk 0:02:56]}  d6 {[%clk 0:02:42]} 9. d5 {[%clk 0:02:43]}  Bxd2+ {[%clk 0:02:38]} 10. Bxd2 {[%clk 0:02:44]}  Ne5 {[%clk 0:02:37]} 11. Nxe5 {[%clk 0:02:42]}  dxe5 {[%clk 0:02:38]} 12. Bb4 {[%clk 0:02:21]}  Nf6 {[%clk 0:02:31]} 13. O-O {[%clk 0:02:19]}  Bd7 {[%clk 0:01:52]} 14. f4 {[%clk 0:02:05]}  exf4 {[%clk 0:01:34]} 15. e5 {[%clk 0:02:04]}  Ng4 {[%clk 0:01:34]} 16. e6 {[%clk 0:01:30]}  Ne3 {[%clk 0:01:21]} 17. exf7+ {[%clk 0:01:29]}  Kxf7 {[%clk 0:01:18]} 18. Rxf4+ {[%clk 0:01:29]}  Bf5 {[%clk 0:01:14]} 19. d6+ {[%clk 0:00:56]}  Nxc4 {[%clk 0:01:14]} 20. Qd5+ {[%clk 0:00:41]}  Ke8 {[%clk 0:01:05]} 21. Re1+ {[%clk 0:00:31]}  Kd7 {[%clk 0:01:00]} 22. Qxf5+ {[%clk 0:00:31]}  Kc6 {[%clk 0:00:55]} 23. Qc5+ {[%clk 0:00:32]}  Kd7 {[%clk 0:00:55]} 24. Rf7+ {[%clk 0:00:32]}  Kc8 {[%clk 0:00:54]} 25. Rxc7+ {[%clk 0:00:28]}  Kb8 {[%clk 0:00:54]} 26. Qxc4 {[%clk 0:00:24]}  Qh4 {[%clk 0:00:40]} 27. Qxh4 {[%clk 0:00:23]} 1-0


[Site "https://www.chess.com"]

[Event "Titled Tuesday Blitz August 22 Early 2023"]
[White "Carroll, Thomas"]
[Black "Clawitter, Craig"]
[WhiteFideId "450111"]
[BlackFideId "2023105"]
[WhiteElo "2441"]
[BlackElo "2233"]
[Result "1-0"]
[Round "7"]
[TimeControl "180+1"]
[Date "2023.08.22"]
[WhiteClock "0:00:29"]
[BlackClock "0:00:00"]
[Board "149"]

1. c4 {[%clk 0:03:00]}  e6 {[%clk 0:02:54]} 2. Nf3 {[%clk 0:02:58]}  Nf6 {[%clk 0:02:53]} 3. g3 {[%clk 0:02:58]}  d5 {[%clk 0:02:54]} 4. Bg2 {[%clk 0:02:59]}  Be7 {[%clk 0:02:54]} 5. O-O {[%clk 0:02:59]}  O-O {[%clk 0:02:54]} 6. b3 {[%clk 0:03:00]}  d4 {[%clk 0:02:53]} 7. e3 {[%clk 0:02:55]}  c5 {[%clk 0:02:54]} 8. exd4 {[%clk 0:02:56]}  cxd4 {[%clk 0:02:54]} 9. Bb2 {[%clk 0:02:51]}  Nc6 {[%clk 0:02:55]} 10. d3 {[%clk 0:02:51]}  e5 {[%clk 0:02:52]} 11. Nbd2 {[%clk 0:02:46]}  Re8 {[%clk 0:02:48]} 12. Re1 {[%clk 0:02:46]}  Bf8 {[%clk 0:02:42]} 13. Ng5 {[%clk 0:02:44]}  a5 {[%clk 0:02:24]} 14. a3 {[%clk 0:02:43]}  Bg4 {[%clk 0:02:00]} 15. Qc2 {[%clk 0:01:37]}  h6 {[%clk 0:01:54]} 16. Nge4 {[%clk 0:01:28]}  Nxe4 {[%clk 0:01:54]} 17. Nxe4 {[%clk 0:01:29]}  f5 {[%clk 0:01:50]} 18. Nd2 {[%clk 0:01:27]}  Bh5 {[%clk 0:01:35]} 19. Bd5+ {[%clk 0:01:25]}  Bf7 {[%clk 0:01:35]} 20. Bxf7+ {[%clk 0:01:21]}  Kxf7 {[%clk 0:01:36]} 21. Nf3 {[%clk 0:01:21]}  Bc5 {[%clk 0:01:21]} 22. Re2 {[%clk 0:01:18]}  e4 {[%clk 0:01:11]} 23. Nd2 {[%clk 0:01:17]}  e3 {[%clk 0:01:01]} 24. Nf1 {[%clk 0:01:14]}  f4 {[%clk 0:00:52]} 25. fxe3 {[%clk 0:00:54]}  dxe3 {[%clk 0:00:20]} 26. gxf4 {[%clk 0:00:54]}  Qh4 {[%clk 0:00:17]} 27. Ng3 {[%clk 0:00:54]}  Kg8 {[%clk 0:00:15]} 28. Rf1 {[%clk 0:00:53]}  Rf8 {[%clk 0:00:14]} 29. f5 {[%clk 0:00:53]}  Rae8 {[%clk 0:00:13]} 30. b4 {[%clk 0:00:48]}  axb4 {[%clk 0:00:13]} 31. axb4 {[%clk 0:00:49]}  Nxb4 {[%clk 0:00:13]} 32. Qc3 {[%clk 0:00:48]}  Qe7 {[%clk 0:00:09]} 33. d4 {[%clk 0:00:46]}  Bd6 {[%clk 0:00:07]} 34. Rf3 {[%clk 0:00:33]}  Nc6 {[%clk 0:00:06]} 35. c5 {[%clk 0:00:32]}  Bxg3 {[%clk 0:00:06]} 36. Rxg3 {[%clk 0:00:33]}  Qe4 {[%clk 0:00:06]} 37. d5 {[%clk 0:00:30]}  Nd4 {[%clk 0:00:05]} 38. Qxd4 {[%clk 0:00:28]}  Qb1+ {[%clk 0:00:00]} 39. Kg2 {[%clk 0:00:29]} 1-0


[Site "https://www.chess.com"]

[Event "Titled Tuesday Blitz August 22 Early 2023"]
[White "Sava, Christiansen-Danut-Eugen"]
[Black "Herzog2012"]
[WhiteFideId "1210114"]
[WhiteElo "2223"]
[BlackElo "2439"]
[Result "1-0"]
[Round "7"]
[TimeControl "180+1"]
[Date "2023.08.22"]
[WhiteClock "0:00:09"]
[BlackClock "0:00:00"]
[Board "150"]

1. c4 {[%clk 0:03:00]}  e5 {[%clk 0:02:59]} 2. Nc3 {[%clk 0:03:01]}  Nf6 {[%clk 0:02:59]} 3. e3 {[%clk 0:03:01]}  Nc6 {[%clk 0:02:50]} 4. d4 {[%clk 0:03:01]}  exd4 {[%clk 0:02:50]} 5. exd4 {[%clk 0:03:00]}  Bb4 {[%clk 0:02:51]} 6. Nf3 {[%clk 0:02:56]}  O-O {[%clk 0:02:49]} 7. Be2 {[%clk 0:02:56]}  d5 {[%clk 0:02:45]} 8. O-O {[%clk 0:02:49]}  dxc4 {[%clk 0:02:41]} 9. Bxc4 {[%clk 0:02:49]}  Bg4 {[%clk 0:02:40]} 10. Be3 {[%clk 0:02:48]}  Bxf3 {[%clk 0:02:38]} 11. Qxf3 {[%clk 0:02:43]}  Rb8 {[%clk 0:02:16]} 12. Rad1 {[%clk 0:02:42]}  Qd7 {[%clk 0:02:03]} 13. a3 {[%clk 0:02:40]}  Bxc3 {[%clk 0:02:00]} 14. bxc3 {[%clk 0:02:40]}  Ne7 {[%clk 0:02:00]} 15. Bg5 {[%clk 0:02:31]}  Nfd5 {[%clk 0:01:58]} 16. Rfe1 {[%clk 0:02:17]}  c6 {[%clk 0:01:46]} 17. Re2 {[%clk 0:02:08]}  Rfe8 {[%clk 0:01:29]} 18. Rde1 {[%clk 0:00:44]}  Ng6 {[%clk 0:01:19]} 19. Rxe8+ {[%clk 0:00:41]}  Rxe8 {[%clk 0:01:19]} 20. Rxe8+ {[%clk 0:00:41]}  Qxe8 {[%clk 0:01:20]} 21. h4 {[%clk 0:00:40]}  Qe1+ {[%clk 0:01:17]} 22. Kh2 {[%clk 0:00:40]}  Nge7 {[%clk 0:01:08]} 23. h5 {[%clk 0:00:34]}  h6 {[%clk 0:01:07]} 24. Bh4 {[%clk 0:00:30]}  Kf8 {[%clk 0:00:55]} 25. Qg3 {[%clk 0:00:22]}  Nf5 {[%clk 0:00:51]} 26. Qb8+ {[%clk 0:00:20]}  Qe8 {[%clk 0:00:51]} 27. Bd8 {[%clk 0:00:07]}  f6 {[%clk 0:00:42]} 28. Bxd5 {[%clk 0:00:05]}  cxd5 {[%clk 0:00:40]} 29. Bc7 {[%clk 0:00:04]}  Qxb8 {[%clk 0:00:39]} 30. Bxb8 {[%clk 0:00:04]}  a5 {[%clk 0:00:35]} 31. g4 {[%clk 0:00:05]}  Ne7 {[%clk 0:00:32]} 32. Bd6 {[%clk 0:00:05]}  Kf7 {[%clk 0:00:32]} 33. Kg3 {[%clk 0:00:02]}  Nc8 {[%clk 0:00:27]} 34. Bf4 {[%clk 0:00:01]}  a4 {[%clk 0:00:27]} 35. Bd2 {[%clk 0:00:01]}  Nd6 {[%clk 0:00:27]} 36. Kf3 {[%clk 0:00:02]}  Nc4 {[%clk 0:00:26]} 37. Bc1 {[%clk 0:00:02]}  g6 {[%clk 0:00:27]} 38. Ke2 {[%clk 0:00:02]}  gxh5 {[%clk 0:00:26]} 39. gxh5 {[%clk 0:00:03]}  f5 {[%clk 0:00:24]} 40. Bxh6 {[%clk 0:00:03]}  Nxa3 {[%clk 0:00:23]} 41. Kd3 {[%clk 0:00:03]}  Nc4 {[%clk 0:00:23]} 42. Kc2 {[%clk 0:00:04]}  b5 {[%clk 0:00:23]} 43. Bg5 {[%clk 0:00:03]}  Nd6 {[%clk 0:00:15]} 44. Bf4 {[%clk 0:00:03]}  Ne4 {[%clk 0:00:14]} 45. f3 {[%clk 0:00:03]}  Nf6 {[%clk 0:00:14]} 46. h6 {[%clk 0:00:02]}  Nd7 {[%clk 0:00:13]} 47. Kb2 {[%clk 0:00:01]}  Nb6 {[%clk 0:00:11]} 48. Ka3 {[%clk 0:00:02]}  Nc4+ {[%clk 0:00:11]} 49. Kb4 {[%clk 0:00:02]}  Kg6 {[%clk 0:00:11]} 50. Bc1 {[%clk 0:00:02]}  a3 {[%clk 0:00:03]} 51. Bxa3 {[%clk 0:00:01]}  Nxa3 {[%clk 0:00:04]} 52. Kxa3 {[%clk 0:00:02]}  Kxh6 {[%clk 0:00:05]} 53. Kb4 {[%clk 0:00:02]}  Kg5 {[%clk 0:00:06]} 54. Kxb5 {[%clk 0:00:03]}  Kf4 {[%clk 0:00:06]} 55. Kc5 {[%clk 0:00:04]}  Kxf3 {[%clk 0:00:06]} 56. Kxd5 {[%clk 0:00:04]}  Ke3 {[%clk 0:00:06]} 57. c4 {[%clk 0:00:05]}  f4 {[%clk 0:00:06]} 58. c5 {[%clk 0:00:06]}  f3 {[%clk 0:00:07]} 59. c6 {[%clk 0:00:07]}  f2 {[%clk 0:00:07]} 60. c7 {[%clk 0:00:08]}  f1=Q {[%clk 0:00:07]} 61. c8=Q {[%clk 0:00:09]}  Qb5+ {[%clk 0:00:07]} 62. Qc5 {[%clk 0:00:08]}  Qd7+ {[%clk 0:00:05]} 63. Qd6 {[%clk 0:00:08]}  Qb5+ {[%clk 0:00:04]} 64. Ke6 {[%clk 0:00:09]}  Ke4 {[%clk 0:00:00]} 65. Qe5+ {[%clk 0:00:09]} 1-0


[Site "https://www.chess.com"]

[Event "Titled Tuesday Blitz August 22 Early 2023"]
[White "Tharushi, T H D Niklesha"]
[Black "Begunov, Konstantin"]
[WhiteFideId "9918264"]
[BlackFideId "4118510"]
[WhiteElo "2199"]
[BlackElo "2438"]
[Result "0-1"]
[Round "7"]
[TimeControl "180+1"]
[Date "2023.08.22"]
[WhiteClock "0:02:24"]
[BlackClock "0:02:02"]
[Board "151"]

1. e4 {[%clk 0:03:00]}  c5 {[%clk 0:03:00]} 2. Nf3 {[%clk 0:03:01]}  d6 {[%clk 0:03:00]} 3. d4 {[%clk 0:03:01]}  cxd4 {[%clk 0:03:01]} 4. Nxd4 {[%clk 0:03:02]}  Nf6 {[%clk 0:03:02]} 5. Nc3 {[%clk 0:03:03]}  a6 {[%clk 0:03:02]} 6. Bg5 {[%clk 0:03:03]}  e6 {[%clk 0:03:02]} 7. f4 {[%clk 0:03:04]}  Qb6 {[%clk 0:03:03]} 8. Qd2 {[%clk 0:03:01]}  Nc6 {[%clk 0:03:03]} 9. O-O-O {[%clk 0:03:00]}  Bd7 {[%clk 0:03:02]} 10. Nxc6 {[%clk 0:02:41]}  Bxc6 {[%clk 0:03:01]} 11. e5 {[%clk 0:02:41]}  dxe5 {[%clk 0:02:58]} 12. fxe5 {[%clk 0:02:42]}  Nd5 {[%clk 0:02:57]} 13. Bc4 {[%clk 0:02:41]}  Bb4 {[%clk 0:02:25]} 14. Rhf1 {[%clk 0:02:30]}  Nxc3 {[%clk 0:02:03]} 15. bxc3 {[%clk 0:02:24]}  Ba3# {[%clk 0:02:02]} 0-1


[Site "https://www.chess.com"]

[Event "Titled Tuesday Blitz August 22 Early 2023"]
[White "SergioMoralesG"]
[Black "Dilmukhametov, Artur"]
[BlackFideId "24179922"]
[WhiteElo "2421"]
[BlackElo "2186"]
[Result "0-1"]
[Round "7"]
[TimeControl "180+1"]
[Date "2023.08.22"]
[WhiteClock "0:00:03"]
[BlackClock "0:00:29"]
[Board "153"]

1. d4 {[%clk 0:03:00]}  c5 {[%clk 0:02:58]} 2. d5 {[%clk 0:02:59]}  f5 {[%clk 0:02:59]} 3. Nc3 {[%clk 0:02:55]}  Nf6 {[%clk 0:02:56]} 4. Bg5 {[%clk 0:02:51]}  d6 {[%clk 0:02:41]} 5. e3 {[%clk 0:02:48]}  Ne4 {[%clk 0:02:33]} 6. Nxe4 {[%clk 0:02:40]}  fxe4 {[%clk 0:02:34]} 7. Ne2 {[%clk 0:02:34]}  g6 {[%clk 0:02:31]} 8. Ng3 {[%clk 0:02:30]}  Bg7 {[%clk 0:02:29]} 9. c3 {[%clk 0:02:23]}  h6 {[%clk 0:02:21]} 10. Bf4 {[%clk 0:01:54]}  g5 {[%clk 0:02:21]} 11. Nh5 {[%clk 0:01:46]}  Bf8 {[%clk 0:02:08]} 12. Bg3 {[%clk 0:01:40]}  Bf5 {[%clk 0:02:08]} 13. Be2 {[%clk 0:01:33]}  Nd7 {[%clk 0:02:05]} 14. h4 {[%clk 0:01:31]}  gxh4 {[%clk 0:01:36]} 15. Rxh4 {[%clk 0:01:26]}  Qb6 {[%clk 0:01:36]} 16. Ng7+ {[%clk 0:00:58]}  Bxg7 {[%clk 0:01:31]} 17. Bh5+ {[%clk 0:00:55]}  Kd8 {[%clk 0:01:30]} 18. Rb1 {[%clk 0:00:54]}  Be5 {[%clk 0:01:12]} 19. Bf4 {[%clk 0:00:48]}  Bf6 {[%clk 0:01:11]} 20. Rh1 {[%clk 0:00:40]}  e5 {[%clk 0:01:11]} 21. dxe6 {[%clk 0:00:37]}  Ne5 {[%clk 0:01:07]} 22. Qd5 {[%clk 0:00:31]}  Ke7 {[%clk 0:00:58]} 23. Rd1 {[%clk 0:00:16]}  Nd3+ {[%clk 0:00:52]} 24. Kf1 {[%clk 0:00:12]}  Nxf4 {[%clk 0:00:43]} 25. Qxf5 {[%clk 0:00:12]}  Nxh5 {[%clk 0:00:43]} 26. Qxh5 {[%clk 0:00:10]}  Raf8 {[%clk 0:00:41]} 27. Qd5 {[%clk 0:00:09]}  Be5 {[%clk 0:00:37]} 28. g3 {[%clk 0:00:08]}  Bxg3 {[%clk 0:00:34]} 29. Rd2 {[%clk 0:00:09]}  Be5 {[%clk 0:00:32]} 30. Qxe4 {[%clk 0:00:08]}  Qc6 {[%clk 0:00:26]} 31. Qxc6 {[%clk 0:00:06]}  bxc6 {[%clk 0:00:27]} 32. f4 {[%clk 0:00:07]}  Kxe6 {[%clk 0:00:28]} 33. Ke2 {[%clk 0:00:07]}  Bf6 {[%clk 0:00:28]} 34. Rhd1 {[%clk 0:00:07]}  d5 {[%clk 0:00:28]} 35. b3 {[%clk 0:00:07]}  Bxc3 {[%clk 0:00:28]} 36. Rc2 {[%clk 0:00:07]}  Bb4 {[%clk 0:00:28]} 37. Rg1 {[%clk 0:00:07]}  Rhg8 {[%clk 0:00:28]} 38. Ra1 {[%clk 0:00:07]}  Rg2+ {[%clk 0:00:28]} 39. Kd3 {[%clk 0:00:08]}  Rxc2 {[%clk 0:00:29]} 40. Kxc2 {[%clk 0:00:08]}  Kf5 {[%clk 0:00:29]} 41. Kd3 {[%clk 0:00:09]}  Rg8 {[%clk 0:00:30]} 42. a3 {[%clk 0:00:09]}  Ba5 {[%clk 0:00:30]} 43. Rc1 {[%clk 0:00:09]}  Bb6 {[%clk 0:00:30]} 44. Rh1 {[%clk 0:00:09]}  Kg6 {[%clk 0:00:30]} 45. Rg1+ {[%clk 0:00:09]}  Kf7 {[%clk 0:00:31]} 46. Rh1 {[%clk 0:00:10]}  Rh8 {[%clk 0:00:31]} 47. Rh5 {[%clk 0:00:10]}  Kg6 {[%clk 0:00:32]} 48. Rh1 {[%clk 0:00:10]}  h5 {[%clk 0:00:32]} 49. Rg1+ {[%clk 0:00:09]}  Kf6 {[%clk 0:00:32]} 50. Rh1 {[%clk 0:00:08]}  h4 {[%clk 0:00:33]} 51. e4 {[%clk 0:00:08]}  c4+ {[%clk 0:00:28]} 52. bxc4 {[%clk 0:00:05]}  dxe4+ {[%clk 0:00:28]} 53. Kxe4 {[%clk 0:00:06]}  h3 {[%clk 0:00:29]} 54. Kf3 {[%clk 0:00:06]}  h2 {[%clk 0:00:29]} 55. Kg2 {[%clk 0:00:03]}  Kf5 {[%clk 0:00:29]} 0-1


[Site "https://www.chess.com"]

[Event "Titled Tuesday Blitz August 22 Early 2023"]
[White "Harriott, Tyrell"]
[Black "Kleiman, Jake"]
[WhiteFideId "2086484"]
[BlackFideId "2020041"]
[WhiteElo "2421"]
[BlackElo "2669"]
[Result "0-1"]
[Round "7"]
[TimeControl "180+1"]
[Date "2023.08.22"]
[WhiteClock "0:00:02"]
[BlackClock "0:01:21"]
[Board "154"]

1. d4 {[%clk 0:02:39]}  Nf6 {[%clk 0:02:55]} 2. e3 {[%clk 0:02:38]}  d5 {[%clk 0:02:54]} 3. Bd3 {[%clk 0:02:38]}  e6 {[%clk 0:02:53]} 4. f4 {[%clk 0:02:38]}  Be7 {[%clk 0:02:54]} 5. Nf3 {[%clk 0:02:37]}  O-O {[%clk 0:02:55]} 6. O-O {[%clk 0:02:38]}  b6 {[%clk 0:02:55]} 7. Nbd2 {[%clk 0:02:33]}  Ba6 {[%clk 0:02:54]} 8. b3 {[%clk 0:02:31]}  Bxd3 {[%clk 0:02:51]} 9. cxd3 {[%clk 0:02:32]}  c5 {[%clk 0:02:51]} 10. Bb2 {[%clk 0:02:32]}  Nc6 {[%clk 0:02:47]} 11. Ne5 {[%clk 0:02:31]}  Rc8 {[%clk 0:02:46]} 12. Ndf3 {[%clk 0:02:19]}  Nd7 {[%clk 0:02:41]} 13. Ng4 {[%clk 0:02:00]}  f5 {[%clk 0:02:36]} 14. Nf2 {[%clk 0:01:58]}  Bf6 {[%clk 0:02:30]} 15. Qe2 {[%clk 0:01:52]}  Re8 {[%clk 0:02:24]} 16. Kh1 {[%clk 0:01:50]}  cxd4 {[%clk 0:02:06]} 17. exd4 {[%clk 0:01:49]}  Nb4 {[%clk 0:02:04]} 18. Rfc1 {[%clk 0:01:39]}  Rxc1+ {[%clk 0:02:00]} 19. Bxc1 {[%clk 0:01:37]}  Qc7 {[%clk 0:02:00]} 20. Bd2 {[%clk 0:01:33]}  Nc6 {[%clk 0:01:55]} 21. Rc1 {[%clk 0:01:31]}  Qd6 {[%clk 0:01:56]} 22. Ne5 {[%clk 0:01:12]}  Nxd4 {[%clk 0:01:52]} 23. Qe3 {[%clk 0:01:00]}  Nxe5 {[%clk 0:01:43]} 24. Qxd4 {[%clk 0:00:31]}  Nc4 {[%clk 0:01:42]} 25. Qxf6 {[%clk 0:00:08]}  gxf6 {[%clk 0:01:40]} 26. dxc4 {[%clk 0:00:09]}  dxc4 {[%clk 0:01:39]} 27. Be3 {[%clk 0:00:09]}  cxb3 {[%clk 0:01:37]} 28. axb3 {[%clk 0:00:10]}  Qd5 {[%clk 0:01:31]} 29. b4 {[%clk 0:00:07]}  Qb3 {[%clk 0:01:31]} 30. Nd1 {[%clk 0:00:04]}  Rd8 {[%clk 0:01:30]} 31. Bg1 {[%clk 0:00:02]}  Rxd1 {[%clk 0:01:29]} 32. Rxd1 {[%clk 0:00:02]}  Qxd1 {[%clk 0:01:29]} 33. h3 {[%clk 0:00:03]}  e5 {[%clk 0:01:29]} 34. Kh2 {[%clk 0:00:04]}  e4 {[%clk 0:01:28]} 35. b5 {[%clk 0:00:04]}  Qe1 {[%clk 0:01:26]} 36. Bd4 {[%clk 0:00:03]}  e3 {[%clk 0:01:25]} 37. Bxf6 {[%clk 0:00:03]}  Qd2 {[%clk 0:01:24]} 38. Bh4 {[%clk 0:00:03]}  e2 {[%clk 0:01:24]} 39. Bf2 {[%clk 0:00:02]}  Qxf4+ {[%clk 0:01:23]} 40. Bg3 {[%clk 0:00:01]}  Qe3 {[%clk 0:01:22]} 41. h4 {[%clk 0:00:01]}  f4 {[%clk 0:01:22]} 42. Be1 {[%clk 0:00:01]}  Qc1 {[%clk 0:01:21]} 43. Kh3 {[%clk 0:00:02]}  Qxe1 {[%clk 0:01:21]} 44. Kh2 {[%clk 0:00:02]}  Qg3+ {[%clk 0:01:20]} 45. Kg1 {[%clk 0:00:02]}  e1=Q# {[%clk 0:01:21]} 0-1


[Site "https://www.chess.com"]

[Event "Titled Tuesday Blitz August 22 Early 2023"]
[White "Caspi, Israel"]
[Black "Ovezdurdyyeva, Jemal"]
[WhiteFideId "2807394"]
[BlackFideId "14001888"]
[WhiteElo "2563"]
[BlackElo "2370"]
[Result "0-1"]
[Round "7"]
[TimeControl "180+1"]
[Date "2023.08.22"]
[WhiteClock "0:00:00"]
[BlackClock "0:00:10"]
[Board "156"]

1. e4 {[%clk 0:02:28]}  d6 {[%clk 0:02:59]} 2. d4 {[%clk 0:02:28]}  Nf6 {[%clk 0:03:00]} 3. Nc3 {[%clk 0:02:28]}  g6 {[%clk 0:03:01]} 4. Nf3 {[%clk 0:02:27]}  c6 {[%clk 0:03:01]} 5. a4 {[%clk 0:02:22]}  Bg7 {[%clk 0:03:01]} 6. Be2 {[%clk 0:02:22]}  O-O {[%clk 0:03:02]} 7. O-O {[%clk 0:02:22]}  Nbd7 {[%clk 0:03:01]} 8. Re1 {[%clk 0:02:13]}  e5 {[%clk 0:03:01]} 9. h3 {[%clk 0:02:08]}  Qc7 {[%clk 0:02:54]} 10. Be3 {[%clk 0:02:04]}  Re8 {[%clk 0:02:52]} 11. dxe5 {[%clk 0:02:04]}  dxe5 {[%clk 0:02:52]} 12. Bc4 {[%clk 0:02:03]}  h6 {[%clk 0:02:50]} 13. a5 {[%clk 0:02:03]}  Nf8 {[%clk 0:02:48]} 14. Nd2 {[%clk 0:02:03]}  Be6 {[%clk 0:02:47]} 15. Qe2 {[%clk 0:02:02]}  Nh5 {[%clk 0:02:31]} 16. Nb3 {[%clk 0:01:51]}  Nf4 {[%clk 0:02:28]} 17. Qf1 {[%clk 0:01:50]}  Qe7 {[%clk 0:02:22]} 18. Kh2 {[%clk 0:01:46]}  Bxc4 {[%clk 0:02:09]} 19. Qxc4 {[%clk 0:01:45]}  Qh4 {[%clk 0:01:47]} 20. Qf1 {[%clk 0:01:44]}  Qh5 {[%clk 0:01:43]} 21. g3 {[%clk 0:01:43]}  N4e6 {[%clk 0:01:43]} 22. Red1 {[%clk 0:01:39]}  Ng5 {[%clk 0:01:36]} 23. Nc5 {[%clk 0:01:29]}  b6 {[%clk 0:01:26]} 24. N5a4 {[%clk 0:01:22]}  f5 {[%clk 0:01:04]} 25. exf5 {[%clk 0:01:10]}  gxf5 {[%clk 0:01:03]} 26. Bxg5 {[%clk 0:01:09]}  hxg5 {[%clk 0:00:49]} 27. axb6 {[%clk 0:01:09]}  axb6 {[%clk 0:00:48]} 28. Nxb6 {[%clk 0:01:09]}  Rxa1 {[%clk 0:00:47]} 29. Rxa1 {[%clk 0:01:10]}  Ne6 {[%clk 0:00:35]} 30. Ne2 {[%clk 0:01:06]}  e4 {[%clk 0:00:34]} 31. Nc4 {[%clk 0:01:06]}  f4 {[%clk 0:00:29]} 32. g4 {[%clk 0:01:05]}  Qg6 {[%clk 0:00:25]} 33. c3 {[%clk 0:01:03]}  Nc5 {[%clk 0:00:21]} 34. f3 {[%clk 0:00:52]}  Nd3 {[%clk 0:00:17]} 35. Rd1 {[%clk 0:00:49]}  e3 {[%clk 0:00:15]} 36. b3 {[%clk 0:00:38]}  Nf2 {[%clk 0:00:14]} 37. Rd6 {[%clk 0:00:37]}  Re6 {[%clk 0:00:14]} 38. Rxe6 {[%clk 0:00:27]}  Qxe6 {[%clk 0:00:15]} 39. h4 {[%clk 0:00:28]}  gxh4 {[%clk 0:00:12]} 40. Qb1 {[%clk 0:00:27]}  Qd5 {[%clk 0:00:10]} 41. Ng1 {[%clk 0:00:16]}  e2 {[%clk 0:00:10]} 42. Nxe2 {[%clk 0:00:07]}  Qxf3 {[%clk 0:00:09]} 43. Qg6 {[%clk 0:00:07]}  Nxg4+ {[%clk 0:00:08]} 44. Qxg4 {[%clk 0:00:03]}  Qxg4 {[%clk 0:00:08]} 45. Ng1 {[%clk 0:00:02]}  Qg3+ {[%clk 0:00:08]} 46. Kh1 {[%clk 0:00:02]}  h3 {[%clk 0:00:09]} 47. Nxh3 {[%clk 0:00:01]}  Qxh3+ {[%clk 0:00:10]} 48. Kg1 {[%clk 0:00:00]}  Bxc3 {[%clk 0:00:10]} 0-1


[Site "https://www.chess.com"]